fUST/lending_fUST_20240414
["ID","MTS","AMOUNT","RATE_DAILY","PERIOD"]
[322540539,1713042660259,181.33524609,0.000274,2]
[322540540,1713042660280,573.41367478,0.000274,2]
[322540541,1713042660304,311.84834601,0.000274,2]
[322540625,1713043059874,-305.11489757,0.00036832,7]
[322540626,1713043059898,-2016.88510243,0.00039931,30]
[322540668,1713043309703,-152.60882267,0.00043308,38]
[322540682,1713043452053,152.60882267,0.00043308,38]
[322540688,1713043544189,-272.13607813,0.00027383,2]
[322540689,1713043544219,-1203.25169494,0.00027383,2]
[322540696,1713043625110,-896.47001499,0.0002738,2]
[322540697,1713043625135,-500.0,0.0002738,2]
[322540698,1713043625156,-181.23235072,0.00027381,2]
[322540699,1713043625177,-156.90984275,0.00027382,2]
[322540700,1713043625200,-867.3737079,0.00027382,2]
[322540702,1713043653122,-251.57797921,0.00025,2]
[322540748,1713043749114,-7.62605625,0.00025,2]
[322540749,1713043749134,-1618.35178688,0.00027391,2]
[322540750,1713043749155,-2095.05085537,0.00027392,2]
[322540751,1713043749177,-3723.38103841,0.00027393,2]
[322540752,1713043749198,-200.20792,0.00027397,2]
[322540753,1713043749221,-163.7521074,0.00028618,2]
[322540754,1713043751129,-309.72125088,0.00030122,4]
[322540755,1713043751149,-400.0,0.00032467,2]
[322540756,1713043751168,-400.0,0.00032467,2]
[322540757,1713043751186,-182.808124,0.00032946,2]
[322540758,1713043751208,-200.0,0.00033149,2]
[322540759,1713043751232,-500.0,0.00033195,2]
[322540760,1713043751250,-220.15579165,0.00033195,4]
[322540761,1713043751269,-24900.0,0.00033196,2]
[322540762,1713043752854,365.63388616,0.00030121,4]
[322540784,1713043775977,-626.56134747,0.000339,6]
[322540785,1713043776004,-465.13392178,0.00034902,4]
[322540786,1713043776025,-200.0,0.00034903,2]
[322540787,1713043776047,-852.3925685,0.0003553,2]
[322540788,1713043776070,-167.783947,0.00035531,2]
[322540789,1713043776092,-1268.953462,0.00035616,120]
[322540790,1713043776115,-560.0,0.00035714,2]
[322540791,1713043776139,-209.5471981,0.0003577,4]
[322540792,1713043776161,-283.43333732,0.000369,4]
[322540793,1713043776189,-2045.13777758,0.00037406,2]
[322540794,1713043776226,-718.86615281,0.00037407,2]
[322540795,1713043776261,-937.66260611,0.00037653,4]
[322540796,1713043776297,-818.00051902,0.00037653,2]
[322540797,1713043776336,-2655.05513605,0.00037653,4]
[322540798,1713043776373,-156.63566121,0.00037653,4]
[322540799,1713043776406,-283.99441796,0.00037653,4]
[322540800,1713043776439,-241.96307711,0.00037653,4]
[322540801,1713043776466,-294.15620968,0.00037653,2]
[322540802,1713043776506,-173.67326272,0.00037653,4]
[322540803,1713043776535,-155.21758575,0.00037653,4]
[322540804,1713043776567,-2029.35454976,0.00037653,4]
[322540805,1713043776602,-207.18381603,0.00037653,4]
[322540806,1713043776633,-156.93393326,0.00037653,4]
[322540807,1713043776661,-193.70471611,0.00037653,4]
[322540808,1713043776692,-155.09610642,0.00037653,4]
[322540809,1713043776726,-675.98060973,0.00037653,4]
[322540810,1713043776756,-210.38651295,0.00037653,2]
[322540811,1713043776783,-239.3999795,0.00037653,3]
[322540812,1713043776810,-430.88976759,0.00037654,4]
[322540813,1713043776837,-342.49538997,0.00037654,4]
[322540814,1713043776864,-155.80459589,0.00037654,4]
[322540815,1713043776891,-162.61767324,0.00037654,4]
[322540816,1713043776919,-13220.21405982,0.00037654,30]
[322540817,1713043776944,-3963.9011139,0.00037655,4]
[322540860,1713043832663,-450.79424263,0.00037653,4]
[322540863,1713043832676,-1723.57476086,0.00037653,4]
[322540865,1713043832686,-400.0,0.00037654,2]
[322540867,1713043832695,-3023.14365817,0.00037655,4]
[322540869,1713043832706,-415.18592342,0.00037655,4]
[322540871,1713043832716,-3457.76729452,0.00037655,4]
[322540873,1713043832725,-958.16803838,0.00037655,4]
[322540875,1713043832734,-867.82809104,0.00037655,4]
[322540877,1713043832743,-1212.72837645,0.00037655,4]
[322540879,1713043832752,-372.12463709,0.00037655,4]
[322540881,1713043832762,-154.92253873,0.00037655,4]
[322540883,1713043832771,-187.79272959,0.00037655,4]
[322540885,1713043832785,-376.89055884,0.00037655,4]
[322540887,1713043832794,-317.33364868,0.00037655,37]
[322540889,1713043832807,-485.12025094,0.00037655,37]
[322540891,1713043832816,-257.62252103,0.00037655,4]
[322540893,1713043832825,-1014.05805107,0.00037655,4]
[322540895,1713043832834,-601.81614276,0.00037656,4]
[322540897,1713043832844,-801.81344153,0.00037831,2]
[322540899,1713043832853,-925.5318754,0.00037932,4]
[322540901,1713043832862,-600.92512965,0.00039422,4]
[322540903,1713043832871,-154.87609912,0.00039422,4]
[322540905,1713043832879,-366.21863779,0.00039422,4]
[322540907,1713043832889,-2045.13777758,0.00039422,2]
[322540909,1713043832897,-596.67479795,0.00039422,2]
[322540910,1713043832907,-465.13392178,0.00039422,4]
[322540911,1713043832916,-190.52012886,0.00039422,4]
[322540912,1713043832924,-138.57122454,0.00039426,30]
[322540913,1713043832937,-1850.0,0.00039426,30]
[322540914,1713043832978,169.199833,0.00027397,2]
[322541012,1713043838663,-169.199833,0.0003653,2]
[322541014,1713043838672,-32023.26687546,0.00039426,30]
[322541016,1713043838682,-191.3135569,0.0003983,2]
[322541018,1713043838693,-345.66,0.0003993,4]
[322541019,1713043838703,-1669.02936299,0.0003993,4]
[322541020,1713043838712,-234.35159784,0.0003993,4]
[322541021,1713043838722,-190.76735724,0.00039931,4]
[322541022,1713043838733,-251.43839803,0.0004,15]
[322541023,1713043838743,-1407.30715224,0.0004,4]
[322541024,1713043838753,-357.65520002,0.0004,2]
[322541025,1713043838763,-201.65562337,0.0004,2]
[322541026,1713043838773,-1061.68591961,0.00041,4]
[322541027,1713043838783,-150.0,0.00041,30]
[322541028,1713043838796,-560.0,0.00041419,3]
[322541029,1713043838806,-1268.953462,0.00041553,120]
[322541030,1713043838815,-801.81344153,0.00042831,2]
[322541031,1713043838825,-318.31653243,0.00043308,120]
[322541032,1713043838834,-1287.74,0.00044999,7]
[322541033,1713043838843,-1287.74,0.00044999,7]
[322541034,1713043838853,-500.0,0.00044999,120]
[322541035,1713043838864,-478.43742362,0.00044999,120]
[322541036,1713043838873,-487.05806033,0.00044999,120]
[322541037,1713043838883,-398.81309275,0.00044999,120]
[322541038,1713043838892,-355.4988321,0.00044999,120]
[322541039,1713043838902,-421.69804326,0.00044999,31]
[322541040,1713043838912,-346.89019484,0.00044999,120]
[322541041,1713043838922,-487.83420122,0.00044999,120]
[322541042,1713043838932,-20756.45282533,0.00045,5]
[322541043,1713043838942,-8524.31651613,0.00045,120]
[322541044,1713043838951,-212839.95183207,0.00045,30]
[322541045,1713043838960,-8716.76596975,0.00045,120]
[322541046,1713043838970,-1000.0,0.00045,30]
[322541047,1713043838980,-770.0,0.00045561,3]
[322541048,1713043838989,-169.199833,0.00045662,2]
[322541049,1713043838998,-154.87609912,0.000459,4]
[322541050,1713043839007,-1268.953462,0.00047489,120]
[322541051,1713043839016,-801.81344153,0.00047831,2]
[322541052,1713043839025,-863.98,0.000487,7]
[322541053,1713043839038,-3374.50106562,0.00049,120]
[322541054,1713043839047,-2000.0,0.00049,68]
[322541055,1713043839056,-2903.585161,0.0004901,68]
[322541056,1713043839066,-154.79876161,0.0005,30]
[322541057,1713043839075,-151.0,0.0005,120]
[322541058,1713043839085,-40390.3411235,0.0005,2]
[322541059,1713043839094,-150.0,0.000503,30]
[322541060,1713043839104,-300.0,0.000506,30]
[322541061,1713043839114,-1268.953462,0.00053425,120]
[322541062,1713043839124,-1287.74,0.00054793,7]
[322541063,1713043839134,-2575.48,0.00054793,7]
[322541064,1713043839144,-500.0,0.00054794,120]
[322541065,1713043839153,-500.0,0.00054794,120]
[322541066,1713043839162,-500.0,0.00054794,120]
[322541067,1713043839171,-500.0,0.00054794,120]
[322541068,1713043839181,-500.0,0.00054794,120]
[322541069,1713043839328,-500.0,0.00054794,120]
[322541070,1713043839339,-500.0,0.00054794,120]
[322541071,1713043839348,-500.0,0.00054794,120]
[322541072,1713043839357,-500.0,0.00054794,120]
[322541073,1713043839366,-204.14172714,0.00054794,120]
[322541074,1713043839375,-500.0,0.00054794,120]
[322541075,1713043839385,-501.65200182,0.00054794,120]
[322541076,1713043839394,-560.20467555,0.00054794,120]
[322541077,1713043839403,-500.49791062,0.00054794,120]
[322541078,1713043839412,-500.79208165,0.00054794,120]
[322541079,1713043839422,-559.6,0.00054794,120]
[322541080,1713043839433,-500.0,0.00054794,120]
[322541081,1713043839442,-500.0,0.00054794,120]
[322541082,1713043839451,-500.0,0.00054794,120]
[322541083,1713043839460,-500.0,0.00054794,120]
[322541084,1713043839469,-500.33082873,0.00054794,120]
[322541085,1713043839478,-523.06514236,0.00054794,120]
[322541086,1713043839487,-500.0,0.00054794,120]
[322541087,1713043839496,-501.40211522,0.00054794,120]
[322541088,1713043839507,-502.15700964,0.00054794,120]
[322541089,1713043839518,-500.0,0.00054794,120]
[322541090,1713043839526,-500.0,0.00054794,120]
[322541091,1713043839538,-500.0,0.00054794,120]
[322541092,1713043839548,-500.0,0.00054794,120]
[322541093,1713043839556,-1067.62953055,0.00054794,120]
[322541094,1713043839565,-500.0,0.00054794,120]
[322541095,1713043839574,-500.0,0.00054794,120]
[322541096,1713043839584,-307.60690274,0.00054794,120]
[322541097,1713043839593,-500.0,0.00054794,120]
[322541098,1713043839602,-500.0,0.00054794,120]
[322541099,1713043839611,-500.0,0.00054794,120]
[322541100,1713043839620,-500.0,0.00054794,120]
[322541101,1713043839629,-500.0,0.00054794,120]
[322541102,1713043839638,-520.17380218,0.00054794,120]
[322541103,1713043839647,-500.0,0.00054794,120]
[322541104,1713043839656,-500.0,0.00054794,120]
[322541105,1713043839665,-500.0,0.00054794,120]
[322541106,1713043839674,-500.0,0.00054794,120]
[322541107,1713043839683,-500.0,0.00054794,120]
[322541109,1713043839697,-589.66921019,0.00054794,120]
[322541111,1713043839709,-500.0,0.00054794,120]
[322541113,1713043839722,-500.0,0.00054794,120]
[322541117,1713043839743,-500.0,0.00054794,120]
[322541121,1713043839756,-500.0,0.00054794,60]
[322541125,1713043839772,-502.95760247,0.00054794,120]
[322541128,1713043839784,-500.0,0.00054794,120]
[322541133,1713043839804,-500.0,0.00054794,120]
[322541136,1713043839829,-500.0,0.00054794,120]
[322541138,1713043839841,-500.70333119,0.00054794,120]
[322541140,1713043839856,-1000.0,0.00054794,120]
[322541141,1713043839867,-500.0,0.00054794,120]
[322541143,1713043839879,-500.0,0.00054794,120]
[322541145,1713043839891,-500.0,0.00054794,120]
[322541147,1713043839902,-500.0,0.00054794,120]
[322541149,1713043839913,-500.0,0.00054794,120]
[322541151,1713043839924,-585.6307535,0.00054794,120]
[322541152,1713043839935,-500.0,0.00054794,120]
[322541154,1713043839946,-500.0,0.00054794,120]
[322541155,1713043839958,-500.0,0.00054794,120]
[322541156,1713043839968,-300.0,0.00054794,7]
[322541157,1713043839979,-500.0,0.00054794,120]
[322541158,1713043839990,-500.0,0.00054794,120]
[322541159,1713043840003,-500.0,0.00054794,120]
[322541160,1713043840014,-500.0,0.00054794,120]
[322541161,1713043840025,-500.0,0.00054794,120]
[322541162,1713043840036,-500.0,0.00054794,120]
[322541163,1713043840051,-500.0,0.00054794,120]
[322541164,1713043840062,-158.717053,0.00054794,120]
[322541166,1713043840074,-502.85893924,0.00054794,120]
[322541168,1713043840084,-697.04,0.00054794,120]
[322541170,1713043840098,-500.0,0.00054794,120]
[322541171,1713043840109,-500.0,0.00054794,120]
[322541172,1713043840120,-501.31569427,0.00054794,120]
[322541173,1713043840131,-500.0,0.00054794,120]
[322541174,1713043840141,-500.0,0.00054794,120]
[322541175,1713043840151,-500.0,0.00054794,120]
[322541176,1713043840162,-500.0,0.00054794,120]
[322541177,1713043840172,-2363.12,0.00054794,120]
[322541178,1713043840182,-500.0,0.00054794,120]
[322541179,1713043840191,-500.0,0.00054794,120]
[322541180,1713043840201,-500.0,0.00054794,120]
[322541181,1713043840211,-500.0,0.00054794,7]
[322541182,1713043840220,-500.0,0.00054794,120]
[322541184,1713043840230,-508.3973965,0.00054794,120]
[322541185,1713043840240,-500.0,0.00054794,120]
[322541186,1713043840249,-500.0,0.00054794,120]
[322541187,1713043840259,-509.03802951,0.00054794,120]
[322541188,1713043840268,-500.0,0.00054794,120]
[322541190,1713043840277,-500.0,0.00054794,120]
[322541192,1713043840286,-500.0,0.00054794,120]
[322541193,1713043840298,-417.69517336,0.00054794,120]
[322541196,1713043840307,-500.0,0.00054794,120]
[322541197,1713043840317,-500.0,0.00054794,120]
[322541199,1713043840326,-500.0,0.00054794,120]
[322541202,1713043840335,-500.0,0.00054794,120]
[322541204,1713043840345,-2418.31,0.00054794,120]
[322541206,1713043840354,-500.0,0.00054794,120]
[322541207,1713043840364,-500.68207587,0.00054794,120]
[322541209,1713043840373,-500.0,0.00054794,120]
[322541212,1713043840387,-500.0,0.00054794,120]
[322541214,1713043840396,-500.0,0.00054794,120]
[322541216,1713043840405,-500.0,0.00054794,120]
[322541218,1713043840414,-500.0,0.00054794,120]
[322541220,1713043840426,-500.0,0.00054794,120]
[322541222,1713043840437,-500.0,0.00054794,120]
[322541224,1713043840447,-500.0,0.00054794,120]
[322541226,1713043840456,-500.0,0.00054794,120]
[322541228,1713043840466,-500.0,0.00054794,120]
[322541229,1713043840475,-500.0,0.00054794,120]
[322541231,1713043840484,-500.0,0.00054794,120]
[322541234,1713043840494,-219.28494068,0.00054794,120]
[322541236,1713043840503,-500.0,0.00054794,120]
[322541237,1713043840513,-502.35220558,0.00054794,120]
[322541240,1713043840522,-500.0,0.00054794,120]
[322541242,1713043840531,-926.67,0.00054794,120]
[322541243,1713043840544,-503.56911168,0.00054794,120]
[322541246,1713043840553,-500.0,0.00054794,120]
[322541247,1713043840562,-500.0,0.00054794,120]
[322541249,1713043840570,-500.0,0.00054794,120]
[322541251,1713043840580,-500.0,0.00054794,120]
[322541253,1713043840588,-591.66921232,0.00054794,120]
[322541256,1713043840598,-500.0,0.00054794,120]
[322541257,1713043840607,-500.0,0.00054794,120]
[322541259,1713043840616,-563.84576789,0.00054794,120]
[322541262,1713043840625,-502.83852805,0.00054794,120]
[322541264,1713043840634,-150.79594025,0.00054794,120]
[322541265,1713043840642,-500.0,0.00054794,120]
[322541267,1713043840651,-509.02229225,0.00054794,120]
[322541269,1713043840661,-500.0,0.00054794,120]
[322541271,1713043840670,-500.0,0.00054794,14]
[322541273,1713043840678,-500.0,0.00054794,120]
[322541275,1713043840688,-683.0,0.00054794,120]
[322541277,1713043840696,-500.0,0.00054794,120]
[322541279,1713043840705,-500.0,0.00054794,120]
[322541281,1713043840714,-305.22099553,0.00054794,120]
[322541283,1713043840723,-500.0,0.00054794,120]
[322541285,1713043840733,-500.0,0.00054794,120]
[322541287,1713043840741,-500.0,0.00054794,120]
[322541289,1713043840750,-500.0,0.00054794,120]
[322541291,1713043840759,-500.0,0.00054794,120]
[322541293,1713043840768,-573.36029087,0.00054794,120]
[322541295,1713043840778,-500.0,0.00054794,120]
[322541297,1713043840787,-504.50440049,0.00054794,120]
[322541299,1713043840799,-500.0,0.00054794,120]
[322541301,1713043840809,-420.76768165,0.00054794,120]
[322541303,1713043840818,-536.56095693,0.00054794,120]
[322541305,1713043840827,-878.89,0.00054794,120]
[322541307,1713043840836,-500.0,0.00054794,120]
[322541309,1713043840846,-500.0,0.00054794,120]
[322541311,1713043840855,-500.0,0.00054794,120]
[322541313,1713043840864,-500.0,0.00054794,120]
[322541315,1713043840872,-500.0,0.00054794,120]
[322541317,1713043840881,-500.0,0.00054794,120]
[322541319,1713043840890,-500.0,0.00054794,120]
[322541321,1713043840899,-500.0,0.00054794,120]
[322541323,1713043840908,-500.0,0.00054794,120]
[322541325,1713043840917,-509.38981987,0.00054794,120]
[322541327,1713043840925,-500.0,0.00054794,120]
[322541329,1713043840934,-500.0,0.00054794,120]
[322541331,1713043840944,-500.0,0.00054794,120]
[322541333,1713043840953,-500.0,0.00054794,120]
[322541335,1713043840962,-501.40871073,0.00054794,120]
[322541337,1713043840972,-500.0,0.00054794,120]
[322541339,1713043840981,-500.0,0.00054794,120]
[322541341,1713043840990,-500.0,0.00054794,120]
[322541343,1713043840998,-500.0,0.00054794,120]
[322541345,1713043841007,-238.61278251,0.00054794,120]
[322541347,1713043841016,-500.0,0.00054794,120]
[322541349,1713043841025,-500.0,0.00054794,120]
[322541351,1713043841035,-500.0,0.00054794,120]
[322541353,1713043841049,-500.0,0.00054794,120]
[322541355,1713043841059,-500.0,0.00054794,120]
[322541356,1713043841068,-536.32,0.00054794,120]
[322541358,1713043841079,-500.33287522,0.00054794,120]
[322541360,1713043841089,-500.0,0.00054794,120]
[322541362,1713043841100,-500.0,0.00054794,120]
[322541364,1713043841110,-500.0,0.00054794,120]
[322541366,1713043841120,-500.0,0.00054794,120]
[322541368,1713043841129,-500.0,0.00054794,120]
[322541370,1713043841140,-500.0,0.00054794,120]
[322541373,1713043841153,-500.0,0.00054794,120]
[322541374,1713043841163,-505.09467964,0.00054794,120]
[322541377,1713043841173,-1153.96,0.00054794,120]
[322541379,1713043841184,-500.0,0.00054794,120]
[322541389,1713043841277,-500.0,0.00054794,120]
[322541391,1713043841287,-278.57701195,0.00054794,120]
[322541393,1713043841301,-500.0,0.00054794,120]
[322541395,1713043841311,-500.0,0.00054794,120]
[322541397,1713043841321,-500.0,0.00054794,120]
[322541399,1713043841330,-500.0,0.00054794,120]
[322541401,1713043841340,-500.0,0.00054794,120]
[322541403,1713043841349,-500.0,0.00054794,120]
[322541405,1713043841358,-500.70531605,0.00054794,120]
[322541407,1713043841367,-500.0,0.00054794,120]
[322541409,1713043841378,-398.49582361,0.00054794,120]
[322541411,1713043841387,-171.86384382,0.00054794,120]
[322541413,1713043841397,-500.0,0.00054794,120]
[322541415,1713043841406,-564.29163547,0.00054794,120]
[322541417,1713043841415,-500.0,0.00054794,120]
[322541419,1713043841426,-500.0,0.00054794,120]
[322541421,1713043841437,-500.0,0.00054794,120]
[322541423,1713043841447,-500.0,0.00054794,120]
[322541426,1713043841468,-500.0,0.00054794,120]
[322541428,1713043841478,-500.0,0.00054794,120]
[322541430,1713043841488,-253.51827754,0.00054794,120]
[322541433,1713043841498,-500.0,0.00054794,120]
[322541435,1713043841508,-500.0,0.00054794,120]
[322541437,1713043841518,-500.0,0.00054794,120]
[322541439,1713043841529,-500.0,0.00054794,120]
[322541441,1713043841538,-500.0,0.00054794,120]
[322541443,1713043841552,-500.0,0.00054794,120]
[322541445,1713043841562,-500.0,0.00054794,120]
[322541448,1713043841571,-539.79423866,0.00054794,120]
[322541450,1713043841581,-500.0,0.00054794,120]
[322541452,1713043841590,-500.0,0.00054794,120]
[322541454,1713043841600,-500.0,0.00054794,120]
[322541456,1713043841610,-500.0,0.00054794,120]
[322541458,1713043841620,-500.0,0.00054794,120]
[322541460,1713043841630,-500.00025,0.00054794,120]
[322541462,1713043841640,-298.32644037,0.00054794,120]
[322541464,1713043841650,-500.0,0.00054794,120]
[322541466,1713043841660,-500.0,0.00054794,120]
[322541468,1713043841669,-500.0,0.00054794,120]
[322541470,1713043841678,-500.0,0.00054794,120]
[322541473,1713043841688,-500.0,0.00054794,120]
[322541475,1713043841698,-621.06,0.00054794,120]
[322541477,1713043841708,-500.0,0.00054794,120]
[322541479,1713043841718,-500.0,0.00054794,120]
[322541481,1713043841729,-500.0,0.00054794,120]
[322541483,1713043841740,-500.0,0.00054794,120]
[322541485,1713043841750,-197.06902276,0.00054794,120]
[322541487,1713043841759,-199.33500442,0.00054794,120]
[322541489,1713043841770,-500.0,0.00054794,120]
[322541491,1713043841781,-516.70809908,0.00054794,120]
[322541494,1713043841796,-500.0,0.00054794,120]
[322541496,1713043841807,-500.0,0.00054794,120]
[322541497,1713043841818,-500.0,0.00054794,120]
[322541500,1713043841829,-500.0,0.00054794,120]
[322541502,1713043841839,-500.0,0.00054794,120]
[322541504,1713043841851,-500.0,0.00054794,120]
[322541506,1713043841860,-500.0,0.00054794,120]
[322541508,1713043841871,-500.0,0.00054794,120]
[322541510,1713043841880,-510.51005403,0.00054794,120]
[322541512,1713043841892,-500.0,0.00054794,120]
[322541514,1713043841902,-500.0,0.00054794,120]
[322541516,1713043841912,-500.0,0.00054794,120]
[322541518,1713043841921,-500.0,0.00054794,120]
[322541520,1713043841934,-500.0,0.00054794,120]
[322541522,1713043841945,-500.0,0.00054794,120]
[322541524,1713043841955,-500.0,0.00054794,120]
[322541526,1713043841965,-500.0,0.00054794,120]
[322541528,1713043841975,-508.29695885,0.00054794,120]
[322541530,1713043841986,-1092.55,0.00054794,120]
[322541532,1713043841996,-500.0,0.00054794,120]
[322541534,1713043842006,-500.0,0.00054794,120]
[322541536,1713043842017,-500.0,0.00054794,120]
[322541538,1713043842026,-500.78951343,0.00054794,120]
[322541540,1713043842036,-500.0,0.00054794,120]
[322541542,1713043842048,-500.0,0.00054794,120]
[322541544,1713043842058,-500.0,0.00054794,120]
[322541546,1713043842068,-500.0,0.00054794,120]
[322541548,1713043842077,-500.0,0.00054794,120]
[322541550,1713043842086,-500.0,0.00054794,120]
[322541552,1713043842096,-500.0,0.00054794,120]
[322541554,1713043842104,-500.0,0.00054794,120]
[322541556,1713043842113,-500.0,0.00054794,120]
[322541558,1713043842122,-500.0,0.00054794,120]
[322541560,1713043842132,-500.0,0.00054794,120]
[322541562,1713043842141,-500.0,0.00054794,120]
[322541564,1713043842151,-501.33177882,0.00054794,120]
[322541566,1713043842160,-500.0,0.00054794,120]
[322541568,1713043842169,-500.0,0.00054794,120]
[322541570,1713043842179,-1253.21,0.00054794,120]
[322541572,1713043842187,-1253.21,0.00054794,120]
[322541574,1713043842197,-1253.21,0.00054794,120]
[322541576,1713043842206,-1253.21,0.00054794,120]
[322541578,1713043842217,-1253.21,0.00054794,120]
[322541581,1713043842227,-1253.21,0.00054794,120]
[322541583,1713043842237,-1253.21,0.00054794,120]
[322541585,1713043842246,-1253.21,0.00054794,120]
[322541587,1713043842256,-1253.21,0.00054794,120]
[322541589,1713043842265,-500.0,0.00054794,120]
[322541591,1713043842276,-1253.21,0.00054794,120]
[322541593,1713043842286,-1253.21,0.00054794,120]
[322541595,1713043842300,-1253.21,0.00054794,120]
[322541597,1713043842309,-1253.21,0.00054794,120]
[322541599,1713043842318,-1253.21,0.00054794,120]
[322541601,1713043842327,-1253.21,0.00054794,120]
[322541603,1713043842336,-1253.21,0.00054794,120]
[322541605,1713043842345,-1253.21,0.00054794,120]
[322541607,1713043842354,-1253.21,0.00054794,120]
[322541609,1713043842363,-1253.21,0.00054794,120]
[322541611,1713043842372,-1253.21,0.00054794,120]
[322541613,1713043842384,-1253.21,0.00054794,120]
[322541615,1713043842393,-500.0,0.00054794,120]
[322541617,1713043842402,-1253.21,0.00054794,120]
[322541619,1713043842411,-1253.21,0.00054794,120]
[322541621,1713043842422,-1253.2475981,0.00054794,120]
[322541623,1713043842433,-457.91732347,0.00054794,120]
[322541625,1713043842442,-500.0,0.00054794,120]
[322541627,1713043842451,-500.0,0.00054794,120]
[322541629,1713043842460,-500.0,0.00054794,120]
[322541631,1713043842469,-500.0,0.00054794,120]
[322541633,1713043842477,-500.0,0.00054794,120]
[322541635,1713043842486,-500.0,0.00054794,120]
[322541637,1713043842495,-500.0,0.00054794,120]
[322541639,1713043842504,-500.0,0.00054794,120]
[322541641,1713043842513,-500.0,0.00054794,120]
[322541643,1713043842522,-500.0,0.00054794,120]
[322541644,1713043842531,-500.0,0.00054794,120]
[322541646,1713043842543,-500.0,0.00054794,120]
[322541649,1713043842553,-500.0,0.00054794,120]
[322541651,1713043842563,-510.05440641,0.00054794,120]
[322541653,1713043842572,-1486.08,0.00054794,120]
[322541655,1713043842581,-500.0,0.00054794,120]
[322541656,1713043842590,-500.0,0.00054794,120]
[322541658,1713043842599,-563.04684633,0.00054794,120]
[322541660,1713043842608,-748.04,0.00054794,120]
[322541662,1713043842617,-500.0,0.00054794,120]
[322541664,1713043842625,-500.0,0.00054794,120]
[322541666,1713043842634,-500.0,0.00054794,120]
[322541668,1713043842643,-500.0,0.00054794,120]
[322541670,1713043842652,-500.0,0.00054794,120]
[322541672,1713043842660,-500.0,0.00054794,120]
[322541674,1713043842669,-168.6665972,0.00054794,120]
[322541676,1713043842678,-500.0,0.00054794,120]
[322541678,1713043842687,-472.21653685,0.00054794,120]
[322541680,1713043842696,-500.0,0.00054794,120]
[322541682,1713043842706,-500.0,0.00054794,120]
[322541684,1713043842714,-500.0,0.00054794,120]
[322541686,1713043842723,-1388.41,0.00054794,120]
[322541688,1713043842732,-500.0,0.00054794,120]
[322541690,1713043842741,-345.51279381,0.00054794,120]
[322541692,1713043842750,-500.0,0.00054794,120]
[322541694,1713043842758,-927.78,0.00054794,120]
[322541696,1713043842767,-500.0,0.00054794,120]
[322541698,1713043842776,-2500.0,0.00054794,120]
[322541700,1713043842785,-2422.8,0.00054794,120]
[322541701,1713043842796,-1655.3,0.00054794,120]
[322541704,1713043842807,-512.87285513,0.00054794,120]
[322541706,1713043842816,-500.0,0.00054794,120]
[322541708,1713043842825,-1725.76,0.00054794,120]
[322541710,1713043842833,-500.0,0.00054794,120]
[322541712,1713043842842,-510.0,0.00054794,65]
[322541714,1713043842851,-500.0,0.00054794,120]
[322541715,1713043842863,-500.0,0.00054794,120]
[322541717,1713043842872,-500.0,0.00054794,120]
[322541719,1713043842881,-4867.75,0.00054794,120]
[322541721,1713043842889,-500.0,0.00054794,7]
[322541723,1713043842898,-2875.53,0.00054794,120]
[322541725,1713043842907,-500.0,0.00054794,120]
[322541727,1713043842916,-500.0,0.00054794,120]